fUSD/lending_fUSD_20250522
["ID","MTS","AMOUNT","RATE_DAILY","PERIOD"]
[361963971,1747911046340,-433.56,0.00032876,5]
[361963973,1747911046352,-487.83555,0.00032876,5]
[361963975,1747911046361,-500.0,0.00032876,5]
[361963977,1747911046371,-420.0,0.00032876,5]
[361963979,1747911046380,-200.76829416,0.00032876,5]
[361963983,1747911046409,-183.55020813,0.00032876,5]
[361963985,1747911046419,-1177.0,0.00032876,5]
[361963987,1747911046428,-420.0,0.00032876,5]
[361963989,1747911046438,-420.0,0.00032876,5]
[361963991,1747911046447,-601.74,0.00032876,5]
[361963993,1747911046457,-420.0,0.00032876,5]
[361963995,1747911046466,-432.34,0.00032876,5]
[361963997,1747911046476,-150.850085,0.00032876,5]
[361963999,1747911046485,-499.27,0.00032876,5]
[361964001,1747911046494,-1236.25,0.00032876,5]
[361964003,1747911046504,-420.0,0.00032876,5]
[361964005,1747911046514,-371.51368922,0.00032876,5]
[361964007,1747911046523,-420.0,0.00032876,5]
[361964009,1747911046533,-420.0,0.00032876,5]
[361964011,1747911046542,-420.0,0.00032876,5]
[361964013,1747911046552,-420.0,0.00032876,5]
[361964016,1747911046561,-1206.34,0.00032876,5]
[361964019,1747911046570,-353.37694729,0.00032876,5]
[361964022,1747911046579,-420.0,0.00032876,5]
[361964024,1747911046588,-420.0,0.00032876,5]
[361964026,1747911046598,-160.98669755,0.00032876,5]
[361964028,1747911046607,-420.0,0.00032876,5]
[361964030,1747911046616,-522.82,0.00032876,5]
[361964032,1747911046625,-265.523591,0.00032876,5]
[361964034,1747911046635,-480.89,0.00032876,5]
[361964036,1747911046644,-420.0,0.00032876,5]
[361964038,1747911046654,-530.80338334,0.00032876,5]
[361964040,1747911046663,-1170.58,0.00032876,5]
[361964042,1747911046672,-774.32,0.00032876,5]
[361964044,1747911046681,-420.0,0.00032876,5]
[361964046,1747911046691,-420.0,0.00032876,5]
[361964048,1747911046700,-422.06074483,0.00032876,5]
[361964050,1747911046710,-420.0,0.00032876,5]
[361964052,1747911046719,-498.91,0.00032876,5]
[361964054,1747911046729,-420.0,0.00032876,5]
[361964056,1747911046738,-420.0,0.00032876,5]
[361964058,1747911046748,-423.45,0.00032876,5]
[361964060,1747911046757,-420.0,0.00032876,5]
[361964062,1747911046766,-420.0,0.00032876,5]
[361964064,1747911046775,-420.0,0.00032876,5]
[361964066,1747911046784,-420.0,0.00032876,5]
[361964067,1747911046793,-420.0,0.00032876,5]
[361964069,1747911046802,-420.0,0.00032876,5]
[361964071,1747911046812,-420.0,0.00032876,5]
[361964073,1747911046821,-420.0,0.00032876,5]
[361964075,1747911046831,-554.14,0.00032876,5]
[361964077,1747911046840,-1241.91,0.00032876,5]
[361964079,1747911046850,-420.0,0.00032876,5]
[361964081,1747911046861,-497.7,0.00032876,5]
[361964083,1747911046870,-420.0,0.00032876,5]
[361964086,1747911046879,-420.0,0.00032876,5]
[361964088,1747911046888,-1000.0,0.00032876,30]
[361964090,1747911046897,-427.83,0.00032876,5]
[361964092,1747911046907,-420.0,0.00032876,5]
[361964094,1747911046916,-1026.21,0.00032876,5]
[361964096,1747911046925,-420.0,0.00032876,5]
[361964098,1747911046934,-905.64,0.00032876,5]
[361964100,1747911046944,-420.0,0.00032876,5]
[361964102,1747911046954,-420.0,0.00032876,5]
[361964104,1747911046964,-451.38,0.00032876,5]
[361964106,1747911046973,-1312.16,0.00032876,5]
[361964108,1747911046982,-1052.53,0.00032876,5]
[361964110,1747911046991,-958.43,0.00032876,5]
[361964112,1747911047001,-556.14,0.00032876,5]
[361964114,1747911047011,-981.71,0.00032876,5]
[361964116,1747911047020,-420.0,0.00032876,5]
[361964118,1747911047029,-966.31,0.00032876,5]
[361964120,1747911047039,-420.0,0.00032876,5]
[361964122,1747911047048,-420.0,0.00032876,5]
[361964124,1747911047057,-905.52,0.00032876,5]
[361964126,1747911047068,-811.86,0.00032876,5]
[361964128,1747911047077,-420.0,0.00032876,5]
[361964130,1747911047087,-420.0,0.00032876,5]
[361964132,1747911047097,-420.0,0.00032876,5]
[361964135,1747911047109,-1204.44,0.00032876,5]
[361964137,1747911047121,-891.31,0.00032876,5]
[361964138,1747911047131,-406.3,0.00032876,5]
[361964140,1747911047140,-420.0,0.00032876,5]
[361964142,1747911047150,-420.0,0.00032876,5]
[361964144,1747911047159,-420.0,0.00032876,5]
[361964146,1747911047168,-852.29,0.00032876,5]
[361964148,1747911047177,-1098.47,0.00032876,5]
[361964150,1747911047186,-420.0,0.00032876,5]
[361964152,1747911047198,-420.0,0.00032876,5]
[361964154,1747911047207,-462.73,0.00032876,5]
[361964156,1747911047218,-752.88,0.00032876,5]
[361964158,1747911047227,-1174.38,0.00032876,5]
[361964160,1747911047236,-672.71,0.00032876,5]
[361964162,1747911047245,-603.53,0.00032876,5]
[361964164,1747911047255,-420.0,0.00032876,5]
[361964166,1747911047264,-1748.57,0.00032876,5]
[361964168,1747911047273,-425.01,0.00032876,5]
[361964170,1747911047282,-420.0,0.00032876,5]
[361964172,1747911047291,-496.68,0.00032876,5]
[361964174,1747911047300,-645.16,0.00032876,5]
[361964176,1747911047310,-420.0,0.00032876,5]
[361964199,1747911047515,-600.76,0.00032876,5]
[361964201,1747911047527,-1152.53,0.00032876,5]
[361964203,1747911047536,-642.34,0.00032876,5]
[361964205,1747911047546,-420.0,0.00032876,5]
[361964207,1747911047555,-420.0,0.00032876,5]
[361964209,1747911047565,-881.83,0.00032876,5]
[361964211,1747911047574,-1266.4,0.00032876,5]
[361964213,1747911047584,-778.32,0.00032876,5]
[361964215,1747911047593,-488.54,0.00032876,5]
[361964217,1747911047604,-420.0,0.00032876,5]
[361964219,1747911047613,-659.77,0.00032876,5]
[361964221,1747911047622,-420.0,0.00032876,5]
[361964223,1747911047632,-420.0,0.00032876,5]
[361964225,1747911047642,-420.0,0.00032876,5]
[361964227,1747911047651,-875.38,0.00032876,5]
[361964229,1747911047661,-420.0,0.00032876,5]
[361964231,1747911047671,-437.64164068,0.00032876,5]
[361964232,1747911047680,-920.02,0.00032876,5]
[361964233,1747911047690,-836.83,0.00032876,5]
[361964234,1747911047700,-798.26,0.00032876,5]
[361964235,1747911047710,-420.0,0.00032876,5]
[361964236,1747911047719,-420.0,0.00032876,5]
[361964237,1747911047729,-420.0,0.00032876,5]
[361964238,1747911047738,-420.0,0.00032876,5]
[361964239,1747911047748,-420.0,0.00032876,5]
[361964240,1747911047760,-478.47,0.00032876,5]
[361964242,1747911047770,-1302.73,0.00032876,5]
[361964243,1747911047779,-420.0,0.00032876,5]
[361964245,1747911047789,-680.54,0.00032876,5]
[361964247,1747911047799,-1171.37,0.00032876,5]
[361964249,1747911047810,-469.47,0.00032876,5]
[361964251,1747911047820,-420.0,0.00032876,5]
[361964253,1747911047830,-420.0,0.00032876,5]
[361964255,1747911047839,-552.95,0.00032876,5]
[361964257,1747911047851,-175.15264455,0.00032876,5]
[361964259,1747911047862,-1032.66,0.00032876,5]
[361964261,1747911047872,-420.0,0.00032876,5]
[361964263,1747911047882,-704.45,0.00032876,5]
[361964265,1747911047892,-1268.93,0.00032876,5]
[361964267,1747911047901,-1034.73,0.00032876,5]
[361964269,1747911047911,-420.0,0.00032876,5]
[361964271,1747911047921,-420.0,0.00032876,5]
[361964273,1747911047931,-420.92036841,0.00032876,5]
[361964277,1747911047955,-133.13963159,0.00032876,5]
[361964279,1747911047964,-420.0,0.00032876,5]
[361964281,1747911047974,-0.71036841,0.00032876,5]
[361964843,1747911225883,248.95,0.00013699,2]
[361964848,1747912145526,-250.0,0.00015,2]
[361964849,1747912145551,-300.0,0.00017,2]
[361964850,1747912145574,-88.5092,0.00019,2]
[361964851,1747912147101,-261.4908,0.00019,2]
[361964852,1747912147124,-248.95,0.00020187,2]
[361964853,1747912147145,-400.0,0.00021,2]
[361964854,1747912147166,-450.0,0.00023,2]
[361964855,1747912147187,-187.93564841,0.000249,2]
[361964856,1747912147208,-500.0,0.00025,2]
[361964857,1747912147230,-199.39896832,0.00026676,2]
[361964858,1747912149062,-49.55103168,0.00026676,2]
[361964859,1747912149082,-114.97978652,0.00027,2]
[361964860,1747912150163,-435.02021348,0.00027,2]
[361964861,1747912150184,-481.11396072,0.00029,2]
[361964866,1747912231355,-118.88603928,0.00029,2]
[361964868,1747912231366,-625.81,0.00029028,2]
[361964869,1747912231376,-207.4,0.00030767,2]
[361964870,1747912231387,-133.86891452,0.00030827,2]
[361964871,1747912231399,-116.13108548,0.00030827,2]
[361964872,1747912231409,-300.0,0.00030838,2]
[361964873,1747912231419,-886.53645889,0.00030838,2]
[361964874,1747912231436,-313.46354111,0.00030838,2]
[361964875,1747912231445,-2303.49779143,0.00030839,2]
[361964876,1747912231458,-440.0,0.00030839,2]
[361964877,1747912231470,-8259.28361236,0.00030839,2]
[361964878,1747912231482,-7063.67906117,0.00030839,2]
[361964879,1747912231494,-4417.31673857,0.00030839,2]
[361964880,1747912231569,-636.10140926,0.00030839,2]
[361964881,1747912231581,-780.12138721,0.00030839,2]
[361964882,1747912231592,-217.39993911,0.000309,23]
[361964883,1747912231604,-407.811,0.0003091,2]
[361964884,1747912231616,-2493.19547287,0.00030923,2]
[361964885,1747912231749,-1277.46452713,0.00030923,2]
[361964886,1747912231759,-317.44,0.00030936,2]
[361964887,1747912231768,-650.0,0.00031,2]
[361964889,1747912231778,-151.68,0.00031,2]
[361964890,1747912231788,-1185.85417588,0.00031,30]
[361964891,1747912231799,-4168.56843775,0.00031,30]
[361964892,1747912231812,-11232.108,0.00031,30]
[361964893,1747912231829,-1149.47726564,0.00031,30]
[361964894,1747912231842,-686.75481075,0.00031,30]
[361964895,1747912231866,-272.80967872,0.00031,30]
[361964906,1747912237326,-10397.38709578,0.00031,30]
[361964907,1747912237339,-296.074194,0.00031,30]
[361964908,1747912237383,-1983.39697639,0.00031,30]
[361964909,1747912237394,-26627.56936509,0.00031,30]
[361964910,1747912237405,-150.0,0.00031044,2]
[361964911,1747912237415,-1000.0,0.0003105,2]
[361964912,1747912237426,-253.29,0.000312,2]
[361964913,1747912237439,-1199.20597015,0.00031279,2]
[361964914,1747912237449,-668.65185757,0.00031279,2]
[361964915,1747912237463,-625.81,0.00031292,2]
[361964916,1747912237472,-927.45,0.00031298,2]
[361964917,1747912237482,-1301.167,0.00031298,2]
[361964918,1747912237491,-500.0,0.00031305,2]
[361964919,1747912237502,-150.0,0.00031342,7]
[361964920,1747912237511,-204.0,0.00031421,2]
[361964921,1747912237522,-179.4,0.00031447,120]
[361964922,1747912237531,-1331.14,0.0003162,2]
[361964923,1747912237543,-500.0,0.00031799,2]
[361964924,1747912237553,-7000.0,0.0003188,120]
[361964925,1747912237562,-2751.0,0.00031994,120]
[361964926,1747912237571,-1702.6750979,0.00032,5]
[361964927,1747912237582,-150.0,0.00032055,2]
[361964928,1747912237591,-450.51,0.00032055,2]
[361964929,1747912237601,-150.36,0.00032055,2]
[361964930,1747912237610,-353.4,0.00032055,2]
[361964932,1747912237621,-150.36,0.00032078,2]
[361964934,1747912237630,-384.07,0.00032107,2]
[361964936,1747912237639,-215.0738,0.00032136,2]
[361964938,1747912237649,-437.15,0.00032154,2]
[361964940,1747912237658,-79.91728617,0.00032271,2]
[361964942,1747912237671,-71.38271383,0.00032271,2]
[361964945,1747912237681,-150.0,0.00032357,2]
[361964947,1747912237690,-217.39993904,0.000324,26]
[361964949,1747912237699,-200.0,0.00032437,117]
[361964951,1747912237709,-546.93580952,0.00032566,2]
[361964953,1747912237718,-233.78197733,0.00032655,2]
[361964955,1747912237731,-313.15383219,0.00032655,2]
[361964957,1747912237740,-2644.84960708,0.0003276,2]
[361964959,1747912237749,-628.85564176,0.00032766,2]
[361964961,1747912237760,-371.14435824,0.00032766,2]
[361964963,1747912237769,-213.90036223,0.00032766,2]
[361964966,1747912237791,-1942.23605451,0.00032766,2]
[361964971,1747912237829,-230.33228326,0.00032766,2]
[361964973,1747912237838,-226.9465,0.00032766,2]
[361964975,1747912237847,-2204.22121674,0.00032766,2]
[361964977,1747912237859,-295.77878326,0.00032766,2]
[361964979,1747912237869,-2580.5088315,0.00032773,2]
[361964981,1747912237878,-1098.71238526,0.00032776,2]
[361965177,1747912239599,-11611.79941474,0.00032776,2]
[361965180,1747912239611,-5000.0,0.00032776,2]
[361965183,1747912239622,-231.35130013,0.00032776,2]
[361965186,1747912239631,-188.1412587,0.00032776,15]
[361965189,1747912239642,-2941.26772564,0.000328,15]
[361965192,1747912239651,-172.197,0.00032805,33]
[361965195,1747912239661,-7263.88440078,0.00032856,2]
[361965198,1747912239671,-1715.015,0.0003286,33]
[361965201,1747912239681,-14527.7688016,0.00032866,2]
[361965204,1747912239690,-292.66086214,0.00032866,2]
[361965207,1747912239700,-213.0,0.00032866,2]
[361965211,1747912239710,-2341.28689712,0.00032866,2]
[361965214,1747912239720,-500.0,0.00032873,5]
[361965216,1747912239729,-500.0,0.00032873,5]
[361965220,1747912239739,-500.0,0.00032873,5]
[361965223,1747912239748,-500.0,0.00032873,5]
[361965225,1747912239758,-500.0,0.00032875,2]
[361965227,1747912239767,-500.0,0.00032875,2]
[361965230,1747912239776,-500.0,0.00032875,2]
[361965233,1747912239786,-273.89405621,0.00032875,2]
[361965236,1747912239795,-500.0,0.00032875,2]
[361965239,1747912239805,-500.0,0.00032875,2]
[361965242,1747912239815,-500.0,0.00032875,2]
[361965245,1747912239825,-335.73609119,0.00032875,2]
[361965248,1747912239834,-500.0,0.00032875,2]
[361965251,1747912239844,-490.58379542,0.00032875,2]
[361965254,1747912239854,-500.0,0.00032875,2]
[361965256,1747912239864,-500.0,0.00032875,2]
[361965258,1747912239873,-500.0,0.00032875,2]
[361965260,1747912239882,-500.0,0.00032875,2]
[361965263,1747912239893,-500.0,0.00032875,2]
[361965267,1747912239902,-306.68203696,0.00032875,2]
[361965270,1747912239913,-500.0,0.00032875,2]
[361965273,1747912239922,-500.0,0.00032875,2]
[361965276,1747912239931,-500.0,0.00032875,2]
[361965279,1747912239940,-500.0,0.00032875,2]
[361965282,1747912239950,-500.0,0.00032875,2]
[361965284,1747912239959,-500.0,0.00032875,2]
[361965287,1747912239968,-500.0,0.00032875,2]
[361965290,1747912239978,-500.0,0.00032875,2]
[361965293,1747912239987,-500.0,0.00032875,2]
[361965296,1747912239997,-500.0,0.00032875,2]
[361965299,1747912240007,-500.0,0.00032875,2]
[361965302,1747912240016,-31413.02320771,0.00032876,7]
[361965306,1747912240033,-500.0,0.00032876,7]
[361965309,1747912240043,-355.72425126,0.00032876,7]
[361965313,1747912240055,-41483.82538923,0.00032876,7]
[361965323,1747912240128,-395.92311807,0.00032876,7]
[361965326,1747912240150,-1071.45461549,0.00032876,7]
[361965804,1747912242899,-1000.0,0.00032774,2]
[361965806,1747912242908,-213.0,0.00032876,2]
[361965808,1747912242918,-9219.19230542,0.00032876,7]
[361965810,1747912242929,-144456.06006001,0.00032876,7]
[361965812,1747912242941,-285.19,0.00032876,7]
[361965814,1747912242953,-14178.20996826,0.00032876,7]
[361965818,1747912242981,-2997.13043478,0.00032876,7]
[361965820,1747912242992,-800.0,0.00032876,12]
[361965822,1747912243002,-800.0,0.00032876,12]
[361965824,1747912243011,-800.0,0.00032876,12]
[361965826,1747912243020,-735.87316074,0.00032876,12]
[361965828,1747912243032,-64.12683926,0.00032876,12]
[361965830,1747912243041,-800.0,0.00032876,12]
[361965832,1747912243052,-516.05372371,0.00032876,12]
[361965837,1747912243086,-283.94627629,0.00032876,12]
[361965839,1747912243096,-800.0,0.00032876,12]
[361965841,1747912243106,-94.31073155,0.00032876,12]
[361965851,1747912243193,-705.68926845,0.00032876,12]
[361965853,1747912243203,-800.0,0.00032876,12]
[361965855,1747912243212,-800.0,0.00032876,12]
[361965857,1747912243222,-150.850085,0.00032876,5]
[361965859,1747912243231,-420.0,0.00032876,5]
[361965861,1747912243241,-575.72,0.00032876,5]
[361965863,1747912243251,-208.44353484,0.00032876,5]
[361965866,1747912243261,-593.41,0.00032876,5]
[361965869,1747912243270,-420.0,0.00032876,5]
[361965872,1747912243280,-532.17,0.00032876,5]
[361965875,1747912243289,-420.0,0.00032876,5]
[361965878,1747912243298,-470.22,0.00032876,5]
[361965881,1747912243308,-420.0,0.00032876,5]
[361965883,1747912243317,-420.0,0.00032876,5]
[361965885,1747912243326,-420.0,0.00032876,5]
[361965887,1747912243336,-854.17,0.00032876,5]
[361965889,1747912243345,-420.0,0.00032876,5]
[361965891,1747912243356,-509.8,0.00032876,5]
[361965892,1747912243365,-420.0,0.00032876,5]
[361965894,1747912243375,-420.0,0.00032876,5]
[361965896,1747912243384,-420.0,0.00032876,5]
[361965898,1747912243394,-420.0,0.00032876,5]
[361965900,1747912243403,-420.0,0.00032876,5]
[361965902,1747912243413,-420.0,0.00032876,5]
[361965904,1747912243424,-434.59,0.00032876,5]
[361965907,1747912243434,-673.88,0.00032876,5]
[361965909,1747912243444,-632.28,0.00032876,5]
[361965911,1747912243453,-420.0,0.00032876,5]
[361965913,1747912243463,-295.92325994,0.00032876,5]
[361965915,1747912243473,-420.0,0.00032876,5]
[361965918,1747912243484,-420.0,0.00032876,5]
[361965919,1747912243494,-420.0,0.00032876,5]
[361965922,1747912243504,-373.19570445,0.00032876,5]
[361965924,1747912243519,-76.71429555,0.00032876,5]
[361965926,1747912243528,-420.0,0.00032876,5]
[361965928,1747912243542,-1190.16,0.00032876,5]
[361965930,1747912243552,-801.96,0.00032876,5]
[361965932,1747912243562,-420.0,0.00032876,5]
[361965934,1747912243571,-1216.06,0.00032876,5]
[361965936,1747912243582,-420.0,0.00032876,5]
[361965938,1747912243592,-238.90570445,0.00032876,5]
[361966129,1747912245665,-181.09429555,0.00032876,5]
[361966131,1747912245675,-481.62,0.00032876,5]
[361966133,1747912245685,-804.9,0.00032876,5]
[361966135,1747912245695,-420.0,0.00032876,5]
[361966137,1747912245705,-1154.26,0.00032876,5]
[361966139,1747912245715,-420.0,0.00032876,5]
[361966141,1747912245725,-420.0,0.00032876,5]
[361966143,1747912245736,-420.0,0.00032876,5]
[361966145,1747912245749,-420.0,0.00032876,5]
[361966147,1747912245760,-721.51,0.00032876,5]
[361966149,1747912245770,-420.0,0.00032876,5]
[361966151,1747912245781,-420.0,0.00032876,5]
[361966153,1747912245791,-468.18,0.00032876,5]
[361966155,1747912245802,-420.0,0.00032876,5]
[361966157,1747912245811,-474.37,0.00032876,5]
[361966159,1747912245821,-420.0,0.00032876,5]
[361966161,1747912245831,-475.98,0.00032876,5]
[361966163,1747912245841,-999.56,0.00032876,5]
[361966165,1747912245851,-845.09,0.00032876,5]
[361966167,1747912245861,-420.0,0.00032876,5]
[361966170,1747912245871,-420.0,0.00032876,5]
[361966172,1747912245881,-420.0,0.00032876,5]
[361966174,1747912245891,-420.0,0.00032876,5]
[361966176,1747912245900,-420.0,0.00032876,5]
[361966178,1747912245910,-748.38,0.00032876,5]
[361966180,1747912245920,-989.63,0.00032876,5]
[361966182,1747912245929,-420.0,0.00032876,5]
[361966184,1747912245940,-420.0,0.00032876,5]
[361966186,1747912245950,-420.0,0.00032876,5]
[361966189,1747912245961,-395.42568445,0.00032876,5]
[361966191,1747912245974,-701.43431555,0.00032876,5]
[361966193,1747912245985,-491.96,0.00032876,5]
[361966195,1747912245994,-420.0,0.00032876,5]
[361966197,1747912246004,-420.0,0.00032876,5]
[361966199,1747912246014,-420.0,0.00032876,5]
[361966201,1747912246024,-437.8,0.00032876,5]
[361966202,1747912246034,-420.0,0.00032876,5]
[361966205,1747912246044,-529.91,0.00032876,5]
[361966207,1747912246057,-515.05,0.00032876,5]
[361966208,1747912246067,-881.4,0.00032876,5]
[361966210,1747912246077,-503.09439039,0.00032876,5]
[361966212,1747912246087,-420.0,0.00032876,5]
[361966214,1747912246096,-420.0,0.00032876,5]
[361966216,1747912246106,-420.0,0.00032876,5]
[361966218,1747912246117,-420.0,0.00032876,5]
[361966221,1747912246127,-420.0,0.00032876,5]
[361966223,1747912246137,-758.73,0.00032876,5]
[361966224,1747912246146,-420.0,0.00032876,5]
[361966226,1747912246156,-562.74,0.00032876,5]
[361966228,1747912246166,-420.0,0.00032876,5]
[361966230,1747912246177,-855.15,0.00032876,5]
[361966232,1747912246187,-420.0,0.00032876,5]
[361966234,1747912246196,-865.13,0.00032876,5]
[361966236,1747912246206,-559.88,0.00032876,5]
[361966238,1747912246216,-420.0,0.00032876,5]
[361966241,1747912246226,-420.0,0.00032876,5]
[361966242,1747912246236,-420.0,0.00032876,5]
[361966244,1747912246246,-420.0,0.00032876,5]
[361966246,1747912246256,-420.0,0.00032876,5]
[361966248,1747912246266,-420.0,0.00032876,5]
[361966250,1747912246276,-466.37,0.00032876,5]
[361966252,1747912246286,-420.0,0.00032876,5]
[361966255,1747912246296,-1031.58,0.00032876,5]
[361966257,1747912246306,-420.0,0.00032876,5]
[361966259,1747912246316,-423.08,0.00032876,5]
[361966261,1747912246326,-230.53720057,0.00032876,5]
[361966263,1747912246336,-506.62276675,0.00032876,5]
[361966265,1747912246346,-555.17,0.00032876,5]
[361966267,1747912246356,-420.0,0.00032876,5]
[361966269,1747912246367,-648.23,0.00032876,5]
[361966271,1747912246377,-749.18,0.00032876,5]
[361966273,1747912246387,-420.0,0.00032876,5]
[361966275,1747912246397,-802.54,0.00032876,5]
[361966277,1747912246407,-420.0,0.00032876,5]
[361966279,1747912246417,-1140.49,0.00032876,5]
[361966281,1747912246426,-420.0,0.00032876,5]
[361966283,1747912246437,-579.64,0.00032876,5]
[361966285,1747912246446,-418.5502999,0.00032876,5]
[361966286,1747912246457,-1148.06,0.00032876,5]
[361966289,1747912246467,-420.0,0.00032876,5]
[361966291,1747912246477,-1018.72,0.00032876,5]
[361966293,1747912246487,-420.0,0.00032876,5]
[361966295,1747912246497,-420.0,0.00032876,5]
[361966297,1747912246507,-420.0,0.00032876,5]
[361966299,1747912246517,-490.48,0.00032876,5]
[361966301,1747912246526,-810.98,0.00032876,5]
[361966303,1747912246536,-420.0,0.00032876,5]
[361966305,1747912246548,-361.94412482,0.00032876,5]
[361966307,1747912246558,-420.0,0.00032876,5]
[361966309,1747912246567,-420.0,0.00032876,5]
[361966311,1747912246577,-420.0,0.00032876,5]
[361966312,1747912246586,-677.36,0.00032876,5]
[361966314,1747912246596,-641.02,0.00032876,5]
[361966316,1747912246606,-565.17997202,0.00032876,5]
[361966318,1747912246617,-420.0,0.00032876,5]
[361966320,1747912246630,-420.25,0.00032876,5]
[361966322,1747912246640,-648.02,0.00032876,5]
[361966324,1747912246649,-760.22,0.00032876,5]
[361966326,1747912246659,-420.0,0.00032876,5]
[361966328,1747912246669,-420.0,0.00032876,5]
[361966330,1747912246678,-619.49,0.00032876,5]
[361966332,1747912246688,-744.39,0.00032876,5]
[361966334,1747912246697,-1390.81,0.00032876,5]
[361966336,1747912246707,-403.89054466,0.00032876,5]
[361966338,1747912246717,-1412.9,0.00032876,5]
[361966341,1747912246727,-645.07,0.00032876,5]
[361966343,1747912246736,-420.0,0.00032876,5]
[361966345,1747912246746,-420.0,0.00032876,5]
[361966347,1747912246755,-420.0,0.00032876,5]
[361966349,1747912246764,-420.0,0.00032876,5]
[361966351,1747912246774,-724.45,0.00032876,5]
[361966353,1747912246783,-420.0,0.00032876,5]
[361966355,1747912246793,-420.0,0.00032876,5]
[361966357,1747912246802,-2188.7,0.00032876,5]
[361966359,1747912246812,-528.89,0.00032876,5]
[361966361,1747912246821,-501.21,0.00032876,5]
[361966363,1747912246831,-420.0,0.00032876,5]
[361966365,1747912246840,-420.0,0.00032876,5]
[361966367,1747912246849,-420.0,0.00032876,5]
[361966369,1747912246860,-936.51,0.00032876,5]
[361966371,1747912246870,-420.0,0.00032876,5]
[361966373,1747912246879,-340.0,0.00032876,5]
[361966375,1747912246888,-491.95,0.00032876,5]
[361966377,1747912246898,-420.0,0.00032876,5]
[361966379,1747912246907,-420.0,0.00032876,5]
[361966381,1747912246916,-2458.54,0.00032876,5]
[361966382,1747912246925,-355.25400138,0.00032876,5]
[361966383,1747912246935,-541.22,0.00032876,5]
[361966384,1747912246944,-911.59,0.00032876,5]
[361966385,1747912246954,-420.0,0.00032876,5]
[361966386,1747912246963,-423.30936753,0.00032876,5]
[361966387,1747912246973,-774.95,0.00032876,5]
[361966388,1747912246983,-420.0,0.00032876,5]
[361966389,1747912246992,-643.61,0.00032876,5]
[361966390,1747912247001,-726.31,0.00032876,5]
[361966391,1747912247011,-420.0,0.00032876,5]
[361966392,1747912247020,-420.0,0.00032876,5]
[361966394,1747912247030,-420.0,0.00032876,5]
[361966396,1747912247039,-1070.02,0.00032876,5]
[361966398,1747912247048,-428.0,0.00032876,5]
[361966400,1747912247058,-666.9,0.00032876,5]
[361966402,1747912247068,-420.0,0.00032876,5]
[361966404,1747912247077,-535.37,0.00032876,5]
[361966406,1747912247086,-420.0,0.00032876,5]
[361966408,1747912247095,-420.0,0.00032876,5]
[361966410,1747912247105,-1100.83,0.00032876,5]
[361966412,1747912247117,-420.0,0.00032876,5]
[361966414,1747912247126,-538.63,0.00032876,5]
[361966416,1747912247136,-881.47,0.00032876,5]
[361966418,1747912247146,-420.0,0.00032876,5]
[361966420,1747912247156,-420.0,0.00032876,5]
[361966422,1747912247166,-1053.75,0.00032876,5]
[361966425,1747912247175,-420.0,0.00032876,5]
[361966427,1747912247185,-420.0,0.00032876,5]
[361966429,1747912247194,-420.0,0.00032876,5]